Cogmind - Beta 15 @@@ ROGUE MODE // 2025.07.04 @ 00:19:31 Player: Cracklepappy Result: Self-destructed Performance ------------- Evolutions (5) 2500 Regions Visited (20) 4000 Robots Destroyed (363) 1815 Value Destroyed (15581) 15581 Prototype IDs (50) 1000 Alien Tech Used (0) 0 Bonus (8608) 8608 TOTAL SCORE: 33504 Bonus ------- High Alert Combat Kills 4608 Follower Combat Kills 1183 Entered Garrisons 800 Used RIF Installer 2000 Registered with UFD 300 Met Optimus in HQ 500 Friendly Fire -783 Cogmind --------- Core Integrity 538/1000 Matter 5/300 Energy 2/100 System Corruption 8% Temperature Cool (0) Movement Flying (109) Ox1 Location -5/Factory Parts ------- > --- POWER (1) -------- Improved Fusion Compressor > --- PROPULSION (6) --- Cooled Cesium-ion Thruster Cooled Cesium-ion Thruster Field Propulsion Array Cooled Impulse Thruster Cooled Impulse Thruster > --- UTILITY (6) ------ Large Storage Unit Gravity Neutralizer Enhanced Optical Array Core Analyzer Advanced Hacking Suite > --- WEAPON (4) ------- Heavy Machine Gun Heavy Pick > --- INVENTORY (15) --- Improved Fusion Compressor Cooled Impulse Thruster Advanced Cooling System Matter Compressor (0) Transport Network Coupler Advanced Recoil Stabilizer Advanced Weapon Cycler Relay Coupler [NC] (39) Overtuned Barrage Gun Compact Linear Accelerator Tiamat Missile Launcher Improved Remote Datajack Plasma Cutter Peak State ------------ > --- POWER ------------ Improved Fusion Compressor > --- PROPULSION ------- Cooled Cesium-ion Thruster Field Propulsion Array Cooled Impulse Thruster Cooled Impulse Thruster Cooled Impulse Thruster > --- UTILITY ---------- Large Storage Unit Gravity Neutralizer Enhanced Optical Array IFF Parser Core Analyzer Advanced Hacking Suite > --- WEAPON ----------- Heavy Machine Gun Compact Linear Accelerator Remote Datajack Heavy Pick > --- INVENTORY -------- Improved Fusion Compressor Cooled Impulse Thruster Matter Compressor Advanced Weapon Cycler Advanced Reaction Control System Improved Hacking Suite Authchip [Propulsion] Relay Coupler [NC] Relay Coupler [NC] Overtuned Barrage Gun Flak Gun Hypervelocity Gauss Rifle Hypervelocity Gauss Rifle Railgun Plasma Cutter [Rating: 112] Favorites ----------- Power Ion Engine Engine Ion Engine Power Core Nuclear Core Reactor Light Antimatter Reactor Propulsion Armored Treads Treads Armored Treads Leg Aluminum Leg Wheel Compact Wheel Hover Unit Aerolev Unit Flight Unit Cooled Impulse Thruster Utility High-capacity Storage Unit Device Advanced Heat Sink Storage High-capacity Storage Unit Processor Advanced Targeting Computer Hackware Hacking Suite Protection Improved Propulsion Shielding Weapon Enhanced Autogun Energy Gun Gatling Laser Energy Cannon Plasma Cannon Ballistic Gun Enhanced Autogun Ballistic Cannon Light Cannon Launcher Micro-nuke Launcher Special Weapon Remote Datajack Impact Weapon Great Maul Slashing Weapon Katana Piercing Weapon Spear Special Melee Weapon Improved Datajack Build | -11 -10 -10 -10 -9 -8 -8 -8 -8 -8 -6 -6 -6 -6 -6 -6 -6 -6 -5 -5 -5 ------- Run | Yrd Mat Min Exi Min Mat Gar Sto Rec Scr Fac Was Fac Gar Fac Gar Fac Gar Fac Was Fac Slots Evolved 10 | . . . . . 4 . . . . 4 . . . . . . . 2 . . Power . | . . . . . . . . . . . . . . . . . . . . . Propulsion 4 | . . . . . 1 . . . . 2 . . . . . . . 1 . . Utility 4 | . . . . . 1 . . . . 2 . . . . . . . 1 . . Weapon 2 | . . . . . 2 . . . . . . . . . . . . . . . Parts Attached 273 | 7 22 5 2 1 27 31 28 . 19 19 4 29 9 12 24 1 16 11 . 6 Power 32 | 1 1 1 . 1 2 7 3 . 3 . 1 2 . 1 4 . 4 . . 1 Engine 16 | 1 1 1 . 1 2 2 3 . 1 . . 1 . . 1 . 2 . . . Core 14 | . . . . . . 5 . . 2 . 1 1 . 1 2 . 1 . . 1 Reactor 2 | . . . . . . . . . . . . . . . 1 . 1 . . . Propulsion 62 | 2 8 2 1 . 14 8 5 . 7 5 . 6 . 1 1 . 1 1 . . Treads 23 | 2 2 . . . 14 1 3 . 1 . . . . . . . . . . . Leg 2 | . 2 . . . . . . . . . . . . . . . . . . . Wheel 17 | . 4 2 1 . . 7 . . 3 . . . . . . . . . . . Hover 2 | . . . . . . . 1 . 1 . . . . . . . . . . . Flight 18 | . . . . . . . 1 . 2 5 . 6 . 1 1 . 1 1 . . Utility 78 | 2 4 . . . 4 7 5 . 4 7 1 11 6 4 9 1 6 4 . 3 Device 32 | 1 1 . . . . 4 4 . 3 . 1 5 4 . 2 1 2 2 . 2 Storage 9 | 1 3 . . . . 1 . . . 2 . 1 . 1 . . . . . . Processor 13 | . . . . . 2 2 . . 1 3 . 2 . 2 1 . . . . . Hackware 17 | . . . . . 1 . . . . 1 . 2 . 1 6 . 3 2 . 1 Protection 7 | . . . . . 1 . 1 . . 1 . 1 2 . . . 1 . . . Artifact . | . . . . . . . . . . . . . . . . . . . . . Weapon 101 | 2 9 2 1 . 7 9 15 . 5 7 2 10 3 6 10 . 5 6 . 2 Energy Gun 6 | 2 . . . . . 4 . . . . . . . . . . . . . . Energy Cannon 5 | . . . . . . . 5 . . . . . . . . . . . . . Ballistic Gun 57 | . 4 . . . 6 2 7 . 2 5 2 6 2 4 7 . 4 5 . 1 Ballistic Cannon 8 | . 2 2 . . 1 . . . . . . . 1 . 1 . 1 . . . Launcher 5 | . 1 . . . . . 2 . . . . 1 . . . . . . . 1 Special Weapon 7 | . 2 . . . . 1 1 . . . . 1 . 1 . . . 1 . . Impact Weapon 2 | . . . . . . 1 . . . . . 1 . . . . . . . . Slashing Weapon 6 | . . . . . . 1 . . 1 1 . 1 . 1 1 . . . . . Piercing Weapon 2 | . . . . . . . . . . 1 . . . . 1 . . . . . Special Melee Weapon 3 | . . . 1 . . . . . 2 . . . . . . . . . . . Unidentified Prototypes 12 | . . . . . 1 . 6 . . . . 4 1 . . . . . . . Parts Lost 25 | . . . . . 2 1 2 . . 3 . 4 1 . 4 . 3 3 . 2 Power 4 | . . . . . . . . . . . . 2 . . 1 . 1 . . . Propulsion 3 | . . . . . . . . . . 1 . . . . 1 . . . . 1 Utility 6 | . . . . . . . . . . 1 . 1 1 . 1 . . 1 . 1 Weapon 12 | . . . . . 2 1 2 . . 1 . 1 . . 1 . 2 2 . . Highest Loss Streak 3 | . . . . . 2 1 1 . . 3 . 1 1 . 2 . 2 3 . 1 To Critical Strikes . | . . . . . . . . . . . . . . . . . . . . . Average Backups 18 | 4 15 29 25 24 23 24 19 20 19 8 7 8 5 10 6 14 5 14 14 13 Power . | . . . 2 3 2 1 . . . . . . . . . 1 . 1 1 1 Propulsion 5 | 2 5 8 5 5 6 9 5 5 7 . . . 1 1 . . . 1 1 1 Utility 5 | . 3 9 8 7 7 7 5 4 5 2 1 3 1 3 2 7 1 7 8 7 Weapon 5 | 1 5 9 8 7 5 4 8 8 5 2 1 2 2 4 2 4 2 3 3 3 Tool/Special . | . . . . . . . . . . . . . . . . . . . . . Unused Backups 63 | . 6 2 . 2 8 11 11 . 5 1 . 3 1 3 1 1 1 3 . 4 Power 6 | . 1 . . . 1 2 . . . . . . 1 1 . . . . . . Propulsion 20 | . 2 1 . . 3 3 10 . . . . 1 . . . . . . . . Utility 26 | . 2 1 . 1 3 3 1 . 5 1 . 1 . . . 1 . 3 . 4 Weapon 10 | . 1 . . 1 1 2 . . . . . 1 . 2 1 . 1 . . . Tool/Special 1 | . . . . . . 1 . . . . . . . . . . . . . . Average Slot Usage (%) 95 | . 94 85 85 85 89 91 99 95 99 98 96 96 98 100 99 100 99 95 100 94 Engine 5 | . 14 14 14 14 9 3 9 9 . . . . . . 1 . 5 . . . Core 3 | . . . . . . 5 . . 8 6 6 5 6 6 3 6 . 5 5 5 Treads 12 | . 8 . . . 26 11 13 27 19 . . . . . . . . . . . Wheel 6 | . 9 28 28 28 . 15 13 . 5 . . . . . . . . . . . Flight 8 | . . . . . . . . . 1 31 33 32 33 33 32 33 33 31 35 31 Device 6 | . 9 . . . . 4 16 18 9 2 3 4 5 5 3 6 6 7 5 7 Storage 8 | . 14 14 14 14 9 9 9 9 9 6 6 6 1 6 . 6 . 5 5 5 Processor 6 | . . . . . 2 1 1 . 8 13 13 15 14 13 22 20 20 11 11 11 Hackware 1 | . . . . . 4 . . . . 4 . 4 . 4 3 . . 8 11 8 Protection 1 | . . . . . 1 4 . . . 4 6 1 11 2 1 . 4 . . . Ballistic Gun 19 | . 11 . . . 35 28 21 29 17 16 21 15 19 19 15 20 22 13 11 10 Ballistic Cannon 3 | . 12 27 14 28 . . . . . . . . . . . . . 2 . . Impact Weapon 1 | . . . . . . 4 . 1 6 . . . . . . . . . . . Slashing Weapon 1 | . . . . . . . . . 6 2 . 1 . . 3 . . . . . Piercing Weapon 1 | . . . . . . . . . . 2 4 5 5 5 4 3 1 4 5 4 Special Melee Weapon 1 | . . . 13 . . . . . 5 3 . . . . . . . . . . Peak Build Rating 112 | 7 12 11 11 12 38 40 44 42 43 62 59 82 91 95 95 93 97 112 107 110 Average Rating 43 | 4 9 10 10 11 29 36 40 39 39 57 55 63 85 84 88 91 91 108 107 104 On Entrance 51 | . 7 11 11 11 12 38 39 42 30 37 50 56 66 87 88 93 93 94 107 107 Naked Turns . | . . . . . . . . . . . . . . . . . . . . . Heaviest Build 168 | 15 151 151 151 151 167 168 79 62 61 55 24 33 33 38 43 43 49 51 45 47 Greatest Support 66 | 40 40 32 32 32 66 66 60 60 60 48 24 44 33 45 46 46 46 54 52 53 Greatest Overweight (x) 4 | . 4 4 4 4 2 4 3 1 4 1 . 1 . . . . 1 1 . 1 Average Overweight (x) . | . 1 4 4 4 2 2 1 . . . . . . . . . . . . . Largest Inventory Capacity 30 | 8 30 30 30 30 30 30 20 20 20 20 8 10 10 15 15 15 15 15 15 15 Average Capacity 19 | 7 17 30 30 30 30 27 20 20 20 8 8 8 5 10 6 15 6 15 15 15 Most Carried 30 | 8 30 30 30 30 30 30 20 20 20 20 8 10 10 15 15 15 15 15 15 15 Average Carried 19 | 4 15 29 29 29 29 27 19 19 19 8 7 8 5 10 6 14 5 14 15 13 Final Capacity 30 | 8 30 30 30 30 30 20 20 20 20 8 8 10 10 15 15 15 15 15 15 15 Final Carried 30 | 8 30 30 30 30 30 20 20 20 20 6 8 10 10 15 15 15 15 15 15 13 Class Distribution -------------------- 23% | Commander-Mutant 16% | Sprinter 13% | Hauler-Gunner 12% | Hauler-Mutant 6% | Hauler-Tank 5% | Mutant 5% | Commander-Gunner 5% | Scavenger-Gunner 5% | Scavenger-Sprinter 3% | Gunner Dominant Class ---------------- Mutant | -10/Materials Hauler-Mutant | -10/Mines Hauler-Mutant | -10/Exiles Hauler-Mutant | -9/Mines Hauler-Gunner | -8/Materials Hauler-Tank | -8/Garrison Scavenger-Gunner | -8/Storage Commander-Gunner | -8/Recycling Commander-Mutant | -8/Scraptown Commander-Sprinter | -6/Factory Sprinter | -6/Waste Sprinter | -6/Factory Sprinter | -6/Garrison Sprinter | -6/Factory Sprinter | -6/Garrison Sprinter | -6/Factory Scavenger-Sprinter | -6/Garrison Sprinter | -5/Factory Sprinter | -5/Waste Sprinter | -5/Factory Resources | -11 -10 -10 -10 -9 -8 -8 -8 -8 -8 -6 -6 -6 -6 -6 -6 -6 -6 -5 -5 -5 ----------- Run | Yrd Mat Min Exi Min Mat Gar Sto Rec Scr Fac Was Fac Gar Fac Gar Fac Gar Fac Was Fac Matter Collected 19122 | 270 1088 158 . 68 1618 1943 1535 295 275 1717 323 2045 950 647 1889 24 2455 1352 . 470 Remotely 56 | 56 . . . . . . . . . . . . . . . . . . . . Salvage Created 17543 | 108 1233 189 . 12 2237 2009 1974 700 . 1153 423 1805 1097 427 1027 24 1644 1041 . 440 Parts 853 | 5 62 20 . 1 120 108 103 29 . 44 9 94 45 20 40 2 91 39 . 21 Haulers Intercepted 18 | . 2 . . . 4 . 5 . . 2 . 3 . 1 . . . 1 . . Recyclers Shooed 14 | . 2 . . . . . 2 . . 2 . 3 . . . . . 4 . 1 Parts Field Recycled . | . . . . . . . . . . . . . . . . . . . . . Retrieved Matter . | . . . . . . . . . . . . . . . . . . . . . Parts Self-Destructed . | . . . . . . . . . . . . . . . . . . . . . Prevented . | . . . . . . . . . . . . . . . . . . . . . Kills | -11 -10 -10 -10 -9 -8 -8 -8 -8 -8 -6 -6 -6 -6 -6 -6 -6 -6 -5 -5 -5 ------- Run | Yrd Mat Min Exi Min Mat Gar Sto Rec Scr Fac Was Fac Gar Fac Gar Fac Gar Fac Was Fac Combat Hostiles Destroyed 241 | . 22 9 . 1 39 33 34 4 . 12 1 12 11 2 16 . 33 7 . 5 Melee 6 | . . . . . . . . . . . . 1 . . 5 . . . . . Guns 176 | . 13 . . . 39 33 25 4 . 3 1 2 8 2 5 . 33 7 . 1 Cannons 24 | . 6 8 . 1 . . 8 . . . . . . . 1 . . . . . AOE 34 | . 2 1 . . . . 1 . . 9 . 9 3 . 5 . . . . 4 Classes Destroyed 22 | 2 7 . . . 4 4 1 . . . 1 2 . . 1 . . . . . Worker 40 | . 2 . . . 3 . 1 . . 3 . 17 . 3 . 1 . 8 . 2 Builder 9 | . 1 . . . 1 . 1 1 . . . 3 . . . . . 1 . 1 Tunneler 6 | 1 . . . . . . . . . 1 . 2 . 1 . . . . . 1 Hauler 18 | . 2 . . . 4 . 5 . . 2 . 3 . 1 . . . 1 . . Recycler 32 | 1 5 1 . . 2 . . 6 . 4 . 7 . 1 . . . 3 . 2 Mechanic 1 | . . . . . . . 1 . . . . . . . . . . . . . Operator 3 | . 2 . . . . . . . . . . 1 . . . . . . . . Watcher 12 | . 3 . . . 5 . 1 . . . . 2 1 . . . . . . . Swarmer 52 | . 9 7 . 1 10 . . . . 4 . 4 . . 4 . 5 4 . 4 Cutter 5 | . . . . . . 2 . . . . . . 3 . . . . . . . Grunt 96 | . 13 2 . . 19 10 23 . . 6 . . 3 . 6 . 13 1 . . Brawler 6 | . . . . . 2 1 1 . . 1 . . . . . . 1 . . . Duelist 6 | . . . . . 1 . 3 . . . . . . . 1 . 1 . . . Protector 6 | . . . . . . 1 3 . . . . 2 . . . . . . . . Sentry 33 | . . . . . 6 9 4 4 . . . . 2 . 1 . 5 2 . . Demolisher 1 | . . . . . . 1 . . . . . . . . . . . . . . Specialist 2 | . . . . . . . . . . . . 1 . . . . 1 . . . Hunter 4 | . . . . . 1 1 . . . . . . 2 . . . . . . . Programmer 26 | . . . . . . 8 . . . 1 . 5 1 2 2 . 6 . . 1 Behemoth 3 | . . . . . . . . . . . . . . . 2 . 1 . . . Compactor 1 | . . . . . . . . . . . 1 . . . . . . . . . Scrapoid 1 | . . . . . . . . . . . . 1 . . . . . . . . Best Kill Streak 16 | 2 4 5 . 1 7 7 8 3 . 7 1 16 4 3 5 1 14 3 . 5 Combat Bots Only 14 | . 3 5 . 1 7 7 8 3 . 7 1 6 4 1 5 . 14 3 . 4 Max Kills in Single Turn 5 | 1 2 2 . 1 2 1 2 1 . 5 1 4 2 1 4 1 2 1 . 2 Gunslinging 1 | . 1 . . . 1 . 1 . . . . . . . . . 1 . . . Exploded 5 | . 1 1 . . . . 1 . . 5 . 2 2 . 4 . . . . 2 Melee 1 | . . . . . . . . . . . . 1 . . 1 . . . . . Uniques/NPCs Destroyed . | . . . . . . . . . . . . . . . . . . . . . Combat | -11 -10 -10 -10 -9 -8 -8 -8 -8 -8 -6 -6 -6 -6 -6 -6 -6 -6 -5 -5 -5 -------- Run | Yrd Mat Min Exi Min Mat Gar Sto Rec Scr Fac Was Fac Gar Fac Gar Fac Gar Fac Was Fac Hostile Shots Fired 1240 | . 96 21 . 1 134 106 78 16 . 101 . 173 38 28 99 . 189 101 . 59 Missed 521 | . 16 6 . 1 41 29 23 10 . 50 . 96 23 13 45 . 112 29 . 27 Hits 719 | . 80 15 . . 93 77 55 6 . 51 . 77 15 15 54 . 77 72 . 32 Melee 24 | . . . . . 2 1 6 . . . . 5 2 . . . . . . 8 Projectile 695 | . 80 15 . . 91 76 49 6 . 51 . 72 13 15 54 . 77 72 . 24 AOE 6 | . . . . 1 . 2 . . . . . . 1 . . . . . . 2 Critical Strikes 34 | . . . . . 4 3 4 . . 1 . 6 . . 2 . 4 6 . 4 Actively Blocked 1 | . . . . . . . . . . . . . . . . . 1 . . . Part Disruptions 1 | . . . . . . . . . . . . 1 . . . . . . . . Damage Taken 11595 | . 853 132 . 37 1307 1222 1058 87 . 743 . 1319 323 220 999 . 1058 1436 . 801 Core 1696 | . 163 27 . . 160 115 71 . . 81 . 267 26 63 152 . 109 261 . 201 Absorbed by Shields 18 | . . . . . . . . . . 18 . . . . . . . . . . Redirected to Shielding 172 | . . . . . . . . . . 14 . 13 7 18 80 . 40 . . . Regen/Repaired (Parts) 1116 | . . . . . 73 . 90 . 171 . . 210 . 97 . . . 239 . 236 Core Remaining (%) 44 | 100 . . . 24 . . . . 37 . . . . . . . 17 . . . Volleys Fired 708 | 3 110 13 . 1 103 96 95 13 . 17 7 22 32 14 59 . 88 23 . 12 Largest 4 | 2 2 2 . 2 4 4 4 4 . 4 3 3 4 3 4 . 4 4 . 3 Hottest 330 | 100 100 60 . 60 101 320 330 100 . 100 75 80 116 89 126 . 121 157 . 121 Shots Fired 1938 | 6 202 24 . 2 396 292 332 53 . 37 21 33 80 27 98 . 248 68 . 19 Gun 1645 | 6 150 . . . 396 269 250 53 . 28 21 23 72 19 58 . 231 61 . 8 Cannon 162 | . 34 22 . 2 . . 73 . . . . . 3 6 16 . . 3 . 3 Launcher 33 | . 2 2 . . . . 1 . . 9 . 8 5 . 4 . . . . 2 Special 98 | . 16 . . . . 23 8 . . . . 2 . 2 20 . 17 4 . 6 Kinetic 1660 | . 158 22 . 2 396 254 223 53 . 28 21 23 75 25 74 . 231 64 . 11 Thermal 194 | 6 42 . . . . 38 108 . . . . . . . . . . . . . Explosive 33 | . 2 2 . . . . 1 . . 9 . 8 5 . 4 . . . . 2 Electromagnetic . | . . . . . . . . . . . . . . . . . . . . . Robot Hit Streak 22 | 4 8 5 . 3 18 19 14 7 . 5 9 8 6 5 12 . 10 22 . 8 Robot Miss Streak 14 | . 4 2 . . 5 5 4 2 . 5 2 3 14 4 4 . 13 4 . 2 Penetration Max 1 | . . . . . 1 . . . . . . . 1 . 1 . 1 1 . . Secondary Targets 35 | . 2 . . . 7 9 2 . . . . . 2 . 2 . 8 3 . . Max Gunslinging Chain 1 | . 1 . . . 1 1 1 . . . . . 1 . 1 . 1 1 . . Shots Hit Robots 1343 | 4 108 11 5 1 230 195 193 32 3 43 22 62 68 23 93 1 160 67 . 22 Core Hits 710 | 3 48 10 . . 92 88 91 10 . 33 6 51 54 12 39 1 126 36 . 10 Critical Kills 13 | . . . . . 2 2 . 1 . . . . 2 . . . 1 5 . . Critical Parts Destroyed 10 | . 2 . . . 3 . . 1 . . . . . 1 . . 1 2 . . Critical Strikes 56 | . 7 . . . 5 9 . 2 . 1 . 5 4 1 8 . 2 9 . 3 Burn 4 | . 4 . . . . . . . . . . . . . . . . . . . Destroy 22 | . 2 . . . 5 1 . 1 . . . . 2 1 1 . 2 7 . . Blast 3 | . 1 . . . . . . . . . . . . . 1 . . . . 1 Smash 2 | . . . . . . 1 . 1 . . . . . . . . . . . . Sever 11 | . . . . . . 7 . . . 1 . 1 . . 2 . . . . . Impale 14 | . . . . . . . . . . . . 4 2 . 4 . . 2 . 2 Melee Attacks 470 | . . . 5 . . 67 1 2 3 48 7 117 37 35 70 1 10 46 . 21 Impact 51 | . . . . . . 48 1 2 . . . . . . . . . . . . Slashing 85 | . . . . . . 19 . . . 34 . 20 . . 12 . . . . . Piercing 325 | . . . . . . . . . . 13 7 97 37 35 58 1 10 46 . 21 Sneak Attacks 81 | . . . 5 . . . . 2 3 13 . 29 1 6 1 1 . 12 . 8 Combat Hostiles 2 | . . . . . . . . . . . . 1 . . 1 . . . . . Follow-up Attacks 8 | . . . . . . . . . . . . . . . 8 . . . . . Damage Inflicted 38953 | 60 1752 273 . 17 3819 3712 4053 713 . 3170 669 6183 3394 799 3854 89 3082 2043 . 1271 Guns 17897 | 60 1359 . . . 3777 2829 2724 503 . 213 275 368 854 269 832 . 3082 643 . 109 Cannons 2358 | . 307 233 . 17 . . 1129 . . . . . 117 . 419 . . 45 . 91 Explosions 6773 | . 86 40 . . . . 127 . . 1385 . 3198 731 . 835 . . . . 371 Melee 11610 | . . . . . . 692 . 201 . 1572 394 2617 1692 530 1768 89 . 1355 . 700 Ramming 70 | . . . . . 42 . 19 9 . . . . . . . . . . . . Kinetic 18120 | . 1441 233 . 17 3777 2546 2286 503 . 213 275 368 971 269 1251 . 3082 688 . 200 Thermal 3948 | 60 225 . . . . 474 1621 . . . . 1568 . . . . . . . . Explosive 5205 | . 86 40 . . . . 127 . . 1385 . 1630 731 . 835 . . . . 371 Electromagnetic . | . . . . . . . . . . . . . . . . . . . . . Impact 441 | . . . . . . 240 . 201 . . . . . . . . . . . . Slashing 3045 | . . . . . . 452 . . . 1436 . 841 . . 316 . . . . . Piercing 8124 | . . . . . . . . . . 136 394 1776 1692 530 1452 89 . 1355 . 700 Highest Corruption 11 | . . . . . . 3 3 4 . . . 4 8 8 11 11 11 . 7 8 Average Corruption 5 | . . . . . . 2 3 3 . . . 2 7 8 9 11 11 . 7 7 Corruption Purged . | . . . . . . . . . . . . . . . . . . . . . Corruption Blocked . | . . . . . . . . . . . . . . . . . . . . . Effects 276 | . . . . . . 19 43 31 . . . 11 18 25 55 4 58 . . 12 Message Errors 66 | . . . . . . 3 7 10 . . . 3 4 9 9 1 17 . . 3 Matter Fused 86 | . . . . . . 7 9 11 . . . 4 3 6 27 2 13 . . 4 Heat Flow Errors 28 | . . . . . . 1 4 4 . . . . 3 2 6 . 6 . . 2 Energy Discharges 22 | . . . . . . 1 3 1 . . . . 1 3 6 1 5 . . 1 Parts Rejected 3 | . . . . . . . . . . . . 2 1 . . . . . . . Parts Fused 3 | . . . . . . . 1 1 . . . . . . . . 1 . . . Data Loss (minor) 33 | . . . . . . 4 12 . . . . 1 2 3 6 . 4 . . 1 Data Loss (major) 5 | . . . . . . 1 1 1 . . . . 1 . . . . . . 1 Misfires 13 | . . . . . . 2 3 2 . . . 1 1 2 . . 2 . . . Alerts 1 | . . . . . . . . . . . . . . . . . 1 . . . Misdirections 3 | . . . . . . . . . . . . . . . 1 . 2 . . . Weapon Failures 13 | . . . . . . . 3 1 . . . . 2 . . . 7 . . . Overload Shots . | . . . . . . . . . . . . . . . . . . . . . Overflow Damage 2413 | . 1 . . 12 . 71 29 181 . 307 49 895 113 83 108 . . 275 . 289 Projectiles 47 | . 1 . . 12 . 5 29 . . . . . . . . . . . . . Explosions 721 | . . . . . . . . . . 53 . 602 56 . 9 . . . . 1 Melee 1645 | . . . . . . 66 . 181 . 254 49 293 57 83 99 . . 275 . 288 Knockbacks 8 | . 3 2 . . 1 . . 1 . . . . . . . . . 1 . . Impact 2 | . . . . . 1 . . 1 . . . . . . . . . . . . Kinetic 5 | . 3 1 . . . . . . . . . . . . . . . 1 . . Secondary 1 | . . 1 . . . . . . . . . . . . . . . . . . Self-Inflicted Damage 324 | . . . . . . . . . . 71 . 71 87 . 95 . . . . . Shots 6 | . . . . . . . . . . 1 . 1 2 . 2 . . . . . Rammed 10 | . . . . . 5 . 5 . . . . . . . . . . . . . Targets Rammed 11 | . . . . . 5 . 5 1 . . . . . . . . . . . . Kicked . | . . . . . . . . . . . . . . . . . . . . . Crushed 1 | . . . . . . . . 1 . . . . . . . . . . . . Highest Temperature 475 | 78 414 24 . . 380 475 353 139 . 274 25 70 239 217 288 3 450 417 134 294 Average Temperature 76 | 33 144 16 . . 89 115 115 61 . 42 13 14 81 76 82 2 97 104 81 70 Received Heat Transfer 3276 | . 300 33 . . 612 306 513 18 . 213 . 132 63 . 219 . 384 447 . 36 Effects 26 | . 4 . . . 3 3 2 . . . . . . 1 3 . 4 3 . 3 Shutdowns 4 | . . . . . . 1 . . . . . . . . . . 1 2 . . Energy Bleed 5 | . 1 . . . . 1 . . . . . . . 1 . . 1 1 . . Interference 11 | . . . . . 3 . 2 . . . . . . . 3 . . . . 3 Matter Decay 2 | . . . . . . 1 . . . . . . . . . . 1 . . . Short Circuit 1 | . 1 . . . . . . . . . . . . . . . . . . . Damage (minor) 1 | . . . . . . . . . . . . . . . . . 1 . . . Damage (major) 2 | . 2 . . . . . . . . . . . . . . . . . . . Siege Activations . | . . . . . . . . . . . . . . . . . . . . . Martial Activations . | . . . . . . . . . . . . . . . . . . . . . Shielding Activations . | . . . . . . . . . . . . . . . . . . . . . Robots Disrupted . | . . . . . . . . . . . . . . . . . . . . . Combat Hostiles . | . . . . . . . . . . . . . . . . . . . . . Robots Corrupted 2 | . . . . . . 1 . 1 . . . . . . . . . . . . Combat Hostiles . | . . . . . . . . . . . . . . . . . . . . . Parts Fried 3 | . . . . . . . . 3 . . . . . . . . . . . . Impact Corruptions 6 | . . . . . . 1 . 5 . . . . . . . . . . . . Robots Melted 2 | . 1 . . . . . 1 . . . . . . . . . . . . . Combat Hostiles 1 | . 1 . . . . . . . . . . . . . . . . . . . Parts Melted 12 | . 4 . . . . . 8 . . . . . . . . . . . . . Heat Transferred 6176 | 185 962 . . . . 1211 3093 . . . . 725 . . . . . . . . Parts Sabotaged . | . . . . . . . . . . . . . . . . . . . . . Parts Stolen . | . . . . . . . . . . . . . . . . . . . . . Parts Stripped . | . . . . . . . . . . . . . . . . . . . . . Power Chain Reactions . | . . . . . . . . . . . . . . . . . . . . . Alert | -11 -10 -10 -10 -9 -8 -8 -8 -8 -8 -6 -6 -6 -6 -6 -6 -6 -6 -5 -5 -5 ------- Run | Yrd Mat Min Exi Min Mat Gar Sto Rec Scr Fac Was Fac Gar Fac Gar Fac Gar Fac Was Fac Maximum Alert Level 5 | . 1 . . . 2 5 4 2 . 2 . 4 4 3 5 3 5 4 2 2 Low Security (%) 35 | 100 93 100 . 100 61 . . . . 61 100 29 . . . . . . . . Level 1 12 | . 6 . . . 4 . . 71 . 35 . 44 . . . . . . . 26 Level 2 14 | . . . . . 33 21 . 28 . 2 . 5 . 18 11 . 6 . 100 73 Level 3 13 | . . . . . . 31 27 . . . . 18 39 81 27 100 11 5 . . Level 4 15 | . . . . . . 15 72 . . . . 1 60 . 41 . 17 94 . . Level 5 8 | . . . . . . 31 . . . . . . . . 18 . 63 . . . High Security . | . . . . . . . . . . . . . . . . . . . . . Max Security . | . . . . . . . . . . . . . . . . . . . . . Peak Influence 2386 | 10 246 143 . 81 693 2386 1358 486 . 517 175 1135 1487 795 1766 949 2127 1565 559 542 Initial 1162 | . . 89 . . . 434 1162 484 . . 175 73 787 780 553 926 654 1116 544 391 Average 625 | . 75 46 . 9 268 1205 1176 378 . 147 140 401 1208 736 1201 938 1578 1332 553 422 Influence Increases 14480 | 10 761 291 . 81 1264 1962 1060 440 . 1350 . 1735 770 330 1413 59 1663 775 15 501 Destroy 0b10 Robot/C 5420 | . 440 180 . 60 780 660 620 80 . 340 . 260 340 40 540 . 820 140 . 120 Destroy 0b10 Robot/NC 730 | 10 75 5 . . 75 40 65 35 . 55 . 185 35 30 20 5 . 65 . 30 Destroy Leader 892 | . 100 40 . 10 198 20 124 . . 76 . 80 40 22 40 . 70 42 . 30 Allied During Kill 627 | . . 36 . 11 . 13 18 77 . 112 . 7 87 . 67 1 198 . . . Trap Triggered on 0b10 50 | . . . . . . . . . . 30 . 20 . . . . . . . . Successful Hack 463 | . 15 . . . 51 14 84 38 . 30 . 118 14 33 14 8 7 15 . 22 Select Force Hacks 300 | . 60 . . . . . . 210 . 30 . . . . . . . . . . Disable Machine 660 | . 15 . . . 60 90 90 . . 45 . 120 15 . 135 45 . 15 . 30 Anti-Garrison Action 1950 | . . . . . . 1050 . . . . . . 50 . 400 . 450 . . . Destroy Structure 793 | . 26 15 . . 10 75 59 . . 77 . 135 99 25 122 . 58 48 . 44 Partial Spotted 345 | . . . . . . . . . . 45 . 105 . 90 . . 15 45 15 30 Lose Combat Pursuer 2250 | . 30 15 . . 90 . . . . 510 . 705 90 90 75 . 45 405 . 195 Influence Decreases 13948 | 10 531 490 31 81 596 244 2202 1343 341 849 396 715 408 1027 437 890 471 1345 1013 528 Entered New Map 7684 | . . 141 31 . . 234 1224 760 341 . 326 32 338 707 237 840 281 1011 1013 168 Time Decay 4595 | 10 531 349 . 81 575 . 618 583 . 391 70 553 . 310 . 50 . 294 . 180 Search Patrol Dispatched 150 | . . . . . . . . . . 150 . . . . . . . . . . Lost Part 247 | . . . . . 17 10 20 . . 30 . 40 10 . 40 . 30 30 . 20 Lost Ally 818 | . . . . . . . 40 . . 278 . 90 60 10 160 . 160 10 . 10 Purge Threat 454 | . . . . . 4 . 300 . . . . . . . . . . . . 150 Squads Dispatched 73 | . 4 . . . 7 . 7 . . 10 . 19 . 6 . 2 . 14 . 4 Investigation 37 | . 2 . . . 2 . . . . 6 . 12 . 3 . 2 . 8 . 2 Extermination 7 | . . . . . . . . . . 1 . 3 . 2 . . . . . 1 Reinforcement 14 | . 2 . . . 2 . . . . 3 . 3 . . . . . 3 . 1 Assault 12 | . . . . . . . 7 . . . . 1 . 1 . . . 3 . . Garrison 3 | . . . . . 3 . . . . . . . . . . . . . . . Intercept . | . . . . . . . . . . . . . . . . . . . . . Searches Triggered 1 | . . . . . . . . . . 1 . . . . . . . . . . Construction Impeded 2 | . . . . . . . . . . 1 . 1 . . . . . . . . Haulers Reinforced . | . . . . . . . . . . . . . . . . . . . . . Active Scanning Responses . | . . . . . . . . . . . . . . . . . . . . . Cargo Convoy Interrupts 2 | . . . . . . . . . . 1 . 1 . . . . . . . . Stealth | -11 -10 -10 -10 -9 -8 -8 -8 -8 -8 -6 -6 -6 -6 -6 -6 -6 -6 -5 -5 -5 --------- Run | Yrd Mat Min Exi Min Mat Gar Sto Rec Scr Fac Was Fac Gar Fac Gar Fac Gar Fac Was Fac Distress Signals 13 | . 6 . . . 4 . 2 . . . . . . . . . . . . 1 Communications Jammed . | . . . . . . . . . . . . . . . . . . . . . Distress Signals . | . . . . . . . . . . . . . . . . . . . . . Times Spotted 537 | . 37 11 . 5 62 36 49 4 . 62 1 87 17 12 35 . 45 44 4 26 Peak Tracking Total 16 | . 4 5 . 3 8 6 6 2 . 16 1 13 5 5 7 . 6 15 4 8 Tactical Retreats 63 | . 2 1 . . 6 . . . . 9 . 18 3 4 3 . 2 10 . 5 Traps | -11 -10 -10 -10 -9 -8 -8 -8 -8 -8 -6 -6 -6 -6 -6 -6 -6 -6 -5 -5 -5 ------- Run | Yrd Mat Min Exi Min Mat Gar Sto Rec Scr Fac Was Fac Gar Fac Gar Fac Gar Fac Was Fac Traps Triggered 46 | . . . . . 2 9 4 . . 3 . 5 . 1 9 . 9 1 . 3 Indirectly . | . . . . . . . . . . . . . . . . . . . . . Trap Hack Attempts . | . . . . . . . . . . . . . . . . . . . . . Triggered . | . . . . . . . . . . . . . . . . . . . . . Disarmed . | . . . . . . . . . . . . . . . . . . . . . Reprogrammed 6 | . . . . . . . . . . . . 6 . . . . . . . . Reused 5 | . . . . . . . . . . 3 . 2 . . . . . . . . Traps Extracted . | . . . . . . . . . . . . . . . . . . . . . Installed 4 | . . . . . . . . . . 4 . . . . . . . . . . Triggered 5 | . . . . . . . . . . 3 . 2 . . . . . . . . Most Traps Carried 8 | . . 5 5 5 5 8 4 4 4 4 . . . . . . . . . . Machines | -11 -10 -10 -10 -9 -8 -8 -8 -8 -8 -6 -6 -6 -6 -6 -6 -6 -6 -5 -5 -5 ---------- Run | Yrd Mat Min Exi Min Mat Gar Sto Rec Scr Fac Was Fac Gar Fac Gar Fac Gar Fac Was Fac Machines Disabled 70 | . 1 . . . 4 14 6 . . 3 . 8 5 . 14 3 9 1 . 2 Max in Single Turn 4 | . 1 . . . 1 1 1 . . 1 . 4 1 . 1 1 2 1 . 1 Garrison Access 4 | . . . . . . . . . . 2 . 1 . . . . . 1 . . Garrison Relay 19 | . . . . . . 8 . . . . . . 1 . 5 . 5 . . . Phase Generator 1 | . . . . . . . . . . . . . . . . . 1 . . . Machines Repaired . | . . . . . . . . . . . . . . . . . . . . . Machines Dismantled 10 | . . . . . . . 1 . . 1 . . . . 2 3 1 . . 2 Machines Sabotaged . | . . . . . . . . . . . . . . . . . . . . . Overloaded Fab Kills . | . . . . . . . . . . . . . . . . . . . . . Hacking | -11 -10 -10 -10 -9 -8 -8 -8 -8 -8 -6 -6 -6 -6 -6 -6 -6 -6 -5 -5 -5 --------- Run | Yrd Mat Min Exi Min Mat Gar Sto Rec Scr Fac Was Fac Gar Fac Gar Fac Gar Fac Was Fac Machines Accessed 141 | . 9 . 2 . 10 4 12 12 6 17 . 31 1 10 2 3 2 14 . 6 Terminals 66 | . 6 . . . 6 4 11 5 . 6 . 13 1 4 2 1 2 2 . 3 Fabricators 9 | . . . . . . . . . . 2 . 4 . 1 . . . 1 . 1 Repair Stations 10 | . 1 . . . 1 . 1 . . . . 4 . . . . . 2 . 1 Recycling Units 28 | . 2 . . . . . . 7 . 5 . 5 . 2 . 1 . 5 . 1 Scanalyzers 9 | . . . . . 2 . . . . . . 2 . 2 . . . 3 . . Garrison Access 11 | . . . . . 1 . . . . 4 . 3 . 1 . 1 . 1 . . Total Hacks 373 | . 25 . 2 . 39 5 33 27 41 35 . 77 1 18 3 6 3 42 . 16 Successful 219 | . 12 . 2 . 23 2 18 17 41 10 . 41 1 9 1 4 1 28 . 9 Failed 152 | . 12 . . . 16 3 15 9 . 25 . 36 . 9 2 2 2 14 . 7 Catastrophic 33 | . 2 . . . 4 1 4 2 . 6 . 6 . 3 2 . 1 2 . . Database Lockouts 2 | . 1 . . . . . . 1 . . . . . . . . . . . . Manual 108 | . 15 . . . 15 . 6 12 . 12 . 17 . 8 . 3 . 14 . 6 Terminals 166 | . 21 . . . 19 5 29 20 . 15 . 31 1 6 3 2 3 3 . 8 Fabricators 18 | . . . . . . . . . . 2 . 10 . 2 . . . 1 . 3 Repair Stations 29 | . 2 . . . 2 . 4 . . . . 14 . . . . . 5 . 2 Recycling Units 43 | . 2 . . . . . . 7 . 8 . 7 . 5 . 2 . 9 . 3 Scanalyzers 54 | . . . . . 17 . . . . . . 10 . 4 . . . 23 . . Garrison Access 20 | . . . . . 1 . . . . 10 . 5 . 1 . 2 . 1 . . Terminal Hacks 98 | . 4 . 2 . 4 2 14 10 41 2 . 10 1 1 1 1 1 . . 4 Record 38 | . . . 2 . . . . 1 34 . . 1 . . . . . . . . Part Schematic 10 | . . . . . 2 . 2 3 . 1 . 1 . . . . . . . 1 Robot Schematic 2 | . 1 . . . . . 1 . . . . . . . . . . . . . Robot Analysis 7 | . . . . . . . . . 7 . . . . . . . . . . . Prototype ID Bank 8 | . 1 . . . . . 1 3 . 1 . 2 . . . . . . . . Open Door 5 | . . . . . . 1 3 . . . . . . . . . 1 . . . Branch Access Points 1 | . . . . . . . . . . . . 1 . . . . . . . . Emergency Access Points 3 | . . . . . . 1 . . . . . 1 . . 1 . . . . . Machine Index 1 | . . . . . . . . . . . . 1 . . . . . . . . Fabricator Index 1 | . . . . . . . . . . . . . . . . . . . . 1 Recycling Unit Index 1 | . . . . . . . . . . . . . . 1 . . . . . . Alert Level 3 | . . . . . . . . 2 . . . 1 . . . . . . . . Unreport Threat 5 | . . . . . 2 . 2 . . . . . . . . . . . . 1 Locate Traps 7 | . 2 . . . . . 2 . . . . 1 . . . 1 . . . 1 Reprogram Traps 1 | . . . . . . . . . . . . 1 . . . . . . . . Hauler Manifests 1 | . . . . . . . 1 . . . . . . . . . . . . . Registered Components 2 | . . . . . . . 1 1 . . . . . . . . . . . . Zone Layout 1 | . . . . . . . 1 . . . . . . . . . . . . . Garrison Registry 1 | . . . . . . . . . . . . . 1 . . . . . . . Fabricator Hacks 9 | . . . . . . . . . . 1 . 4 . 2 . . . . . 2 Network Status 1 | . . . . . . . . . . 1 . . . . . . . . . . Load Schematic 5 | . . . . . . . . . . . . 3 . 1 . . . . . 1 Build 3 | . . . . . . . . . . . . 1 . 1 . . . . . 1 Repair Station Hacks 16 | . . . . . 2 . 4 . . . . 10 . . . . . . . . Scan Component 9 | . . . . . 1 . 2 . . . . 6 . . . . . . . . Repair 7 | . . . . . 1 . 2 . . . . 4 . . . . . . . . Recycling Unit Hacks 1 | . . . . . . . . . . . . . . . . . . 1 . . Process 1 | . . . . . . . . . . . . . . . . . . 1 . . Scanalyzer 40 | . . . . . 11 . . . . . . 7 . 3 . . . 19 . . Insert Component 21 | . . . . . 6 . . . . . . 4 . 2 . . . 9 . . Analyze 19 | . . . . . 5 . . . . . . 3 . 1 . . . 10 . . Garrison Access Hacks 8 | . . . . . 1 . . . . 2 . 2 . 1 . 1 . 1 . . Unlock Access 4 | . . . . . 1 . . . . . . 1 . 1 . 1 . . . . Seal Access 4 | . . . . . . . . . . 2 . 1 . . . . . 1 . . Unauthorized Hacks 47 | . 8 . . . 5 . . 7 . 5 . 8 . 2 . 2 . 7 . 3 Terminals 14 | . 6 . . . 5 . . . . 1 . 1 . . . . . . . 1 Assimilate 2 | . . . . . . . . . . . . 1 . . . . . . . 1 Operators 1 | . . . . . . . . . . 1 . . . . . . . . . . Skim 11 | . 6 . . . 5 . . . . . . . . . . . . . . . Fabricators 2 | . . . . . . . . . . . . 1 . . . . . 1 . . Recompile 2 | . . . . . . . . . . . . 1 . . . . . 1 . . Repair Stations 4 | . . . . . . . . . . . . 1 . . . . . 2 . 1 Patch 4 | . . . . . . . . . . . . 1 . . . . . 2 . 1 Recycling Units 26 | . 2 . . . . . . 7 . 4 . 5 . 2 . 1 . 4 . 1 Tunnel 10 | . 2 . . . . . . 7 . 1 . . . . . . . . . . Fedlink 13 | . . . . . . . . . . 2 . 4 . 2 . 1 . 4 . . Scrapoids 3 | . . . . . . . . . . 1 . 1 . . . . . . . 1 Scanalyzers . | . . . . . . . . . . . . . . . . . . . . . Garrison Access 1 | . . . . . . . . . . . . . . . . 1 . . . . Reprogram 1 | . . . . . . . . . . . . . . . . 1 . . . . Data Cores Recovered . | . . . . . . . . . . . . . . . . . . . . . Used . | . . . . . . . . . . . . . . . . . . . . . Hacking Detections 104 | . 7 . . . 10 3 10 5 . 12 . 25 1 10 2 3 1 9 . 6 Full Trace Events 12 | . 1 . . . . 1 . 3 . 2 . 2 . 1 1 . . 1 . . Feedback Events 2 | . . . . . . . . 1 . . . . . . 1 . . . . . Corruption 2 | . . . . . . . . 1 . . . . . . 1 . . . . . Feedback Blocked . | . . . . . . . . . . . . . . . . . . . . . Robot Schematics Acquired 2 | . 1 . . . . . 1 . . . . . . . . . . . . . Robots Built . | . . . . . . . . . . . . . . . . . . . . . Authchips . | . . . . . . . . . . . . . . . . . . . . . Time . | . . . . . . . . . . . . . . . . . . . . . Total Robot Build Rating . | . . . . . . . . . . . . . . . . . . . . . Part Schematics Acquired 27 | . . . . . 7 . 2 3 . 1 . 4 . 1 . . . 8 . 1 Parts Built 4 | . . . . . . . . . . . . 1 . 2 . . . . . 1 Authchips 2 | . . . . . . . . . . . . 1 . . . . . . . 1 Time 199 | . . . . . . . . . . . . 50 . 47 . . . . . 102 Total Part Build Rating 23 | . . . . . . . . . . . . 5 . 10 . . . . . 8 Parts Repaired 7 | . . . . . 1 . 2 . . . . 4 . . . . . . . . Time 455 | . . . . . 60 . 108 . . . . 287 . . . . . . . . Parts Recycled . | . . . . . . . . . . . . . . . . . . . . . Recycled Matter 13 | . . . . . . . . . . . . . . . . . . 13 . . Retrieved Matter . | . . . . . . . . . . . . . . . . . . . . . Retrieved Components . | . . . . . . . . . . . . . . . . . . . . . Parts Scanalyzed 18 | . . . . . 5 . . . . . . 3 . 1 . . . 9 . . Part Schematics Acquired 17 | . . . . . 5 . . . . . . 3 . 1 . . . 8 . . Parts Damaged 5 | . . . . . 1 . . . . . . 1 . . . . . 3 . . Bothacking | -11 -10 -10 -10 -9 -8 -8 -8 -8 -8 -6 -6 -6 -6 -6 -6 -6 -6 -5 -5 -5 ------------ Run | Yrd Mat Min Exi Min Mat Gar Sto Rec Scr Fac Was Fac Gar Fac Gar Fac Gar Fac Was Fac Used RIF Installer 4 | . . . . . . . . . . . . . 1 . 1 . 2 . . . Coupler Efficiency 1 | . . . . . . . . . . . . . . . 1 . . . . . Hotswap 1 | . . . . . . . . . . . . . . . . . 1 . . . Program Shield 1 | . . . . . . . . . . . . . . . . . 1 . . . Robots Hacked 27 | . . . 3 . . . . . 2 1 . . . 1 10 . 4 3 . 3 Non-combat 12 | . . . 2 . . . . . 1 1 . . . 1 . . 1 3 . 3 Combat 15 | . . . 1 . . . . . 1 . . . . . 10 . 3 . . . Robot Hacks Applied 33 | . . . 5 . . . . . 3 1 . . . 1 11 . 6 3 . 3 parse_system 9 | . . . 5 . . . . . 3 . . . . . . . 1 . . . find_chute 2 | . . . . . . . . . . 1 . . . . . . . 1 . . drop_inventory 1 | . . . . . . . . . . . . . . . . . . 1 . . find_recycling 1 | . . . . . . . . . . . . . . . . . . . . 1 map_route 1 | . . . . . . . . . . . . . . . . . . . . 1 amplify_resonance 1 | . . . . . . . . . . . . . . . 1 . . . . . disable_weapons 1 | . . . . . . . . . . . . . . . 1 . . . . . reboot_system 3 | . . . . . . . . . . . . . . . 2 . 1 . . . overwrite_iff 2 | . . . . . . . . . . . . . . . 2 . . . . . formatsys_low 3 | . . . . . . . . . . . . . . 1 . . . 1 . 1 formatsys_high 9 | . . . . . . . . . . . . . . . 5 . 4 . . . Relay Couplers Released 71 | . . . . . . 29 . . . . . . 3 . 17 . 22 . . . Machine Destruction 71 | . . . . . . 29 . . . . . . 3 . 17 . 22 . . . Attached 11 | . . . . . . . . . . . . . . 1 6 . 3 1 . . Fabnet Peak Effective % . | . . . . . . . . . . . . . . . . . . . . . Robots Rewired 8 | . . . . . . 2 . . . . . . 1 . 3 . 2 . . . Allies Hacked 1 | . . . . . . . . . . . . . . . . . 1 . . . Hacks Repelled . | . . . . . . . . . . . . . . . . . . . . . Allies | -11 -10 -10 -10 -9 -8 -8 -8 -8 -8 -6 -6 -6 -6 -6 -6 -6 -6 -5 -5 -5 -------- Run | Yrd Mat Min Exi Min Mat Gar Sto Rec Scr Fac Was Fac Gar Fac Gar Fac Gar Fac Was Fac Total Allies 60 | . . 4 . . . 2 12 . . 5 . 6 3 1 11 3 6 1 . 6 Largest Group 10 | . . 4 4 3 1 2 10 10 10 10 . 5 3 1 3 5 5 3 . 5 Highest-Rated Group 274 | . . 71 71 40 16 59 173 173 173 173 . 143 274 23 138 179 179 116 . 235 Highest-Rated Ally 99 | . . 31 31 16 16 39 31 29 29 29 . 31 99 23 46 46 46 40 . 47 Initial Warlord ECA Mod 42 | . . . . . . . 14 14 14 . . . . . . . . . . . Total Orders 34 | . . . . . . 1 . . 2 2 . 2 . 7 11 1 6 1 . 1 STAY 24 | . . . . . . 1 . . 2 1 . 2 . 5 10 1 2 . . . ROAM 1 | . . . . . . . . . . . . . . . . . 1 . . . FOLLOW 4 | . . . . . . . . . . . . . . . 1 . 3 . . . GUARD 1 | . . . . . . . . . . 1 . . . . . . . . . . AID 4 | . . . . . . . . . . . . . . 2 . . . 1 . 1 Ally Attacks 314 | . . . . 10 6 4 17 8 . 92 . 16 36 . 47 . 74 . . 4 Total Damage 6861 | . . . . 108 29 116 223 98 . 1188 . 233 1663 . 1677 . 1507 . . 19 Kills 41 | . . . . 2 . 1 2 . . 6 . 3 6 . 12 . 8 . . 1 Allies Corrupted . | . . . . . . . . . . . . . . . . . . . . . Allies Melted . | . . . . . . . . . . . . . . . . . . . . . Intel | -11 -10 -10 -10 -9 -8 -8 -8 -8 -8 -6 -6 -6 -6 -6 -6 -6 -6 -5 -5 -5 ------- Run | Yrd Mat Min Exi Min Mat Gar Sto Rec Scr Fac Was Fac Gar Fac Gar Fac Gar Fac Was Fac Active Infowar (turns) 7911 | . . . . . . 11 . . . 1077 158 1612 456 699 1473 110 1299 659 18 339 Optics 7900 | . . . . . . . . . . 1077 158 1612 456 699 1473 110 1299 659 18 339 Sensors 1 | . . . . . . . . . . . . . . . . . . . . 1 IFF 1120 | . . . . . . . . . . . . 415 . 333 . . . 219 . 153 Seismic 11 | . . . . . . 11 . . . . . . . . . . . . . . T.N.C. 621 | . . . . . . . . . . 74 . 491 56 . . . . . . . Cloaking 35 | . . . . . . . . . . . . 35 . . . . . . . . ECM 2 | . . . . . . . . . . . . . . . . 2 . . . . Robot Analysis Total 7 | . . . . . . . . . 7 . . . . . . . . . . . Derelict Logs Recovered 1 | . . 1 . . . . . . . . . . . . . . . . . . Drone Launches . | . . . . . . . . . . . . . . . . . . . . . Drone Recoveries . | . . . . . . . . . . . . . . . . . . . . . Exploration | -11 -10 -10 -10 -9 -8 -8 -8 -8 -8 -6 -6 -6 -6 -6 -6 -6 -6 -5 -5 -5 ------------- Run | Yrd Mat Min Exi Min Mat Gar Sto Rec Scr Fac Was Fac Gar Fac Gar Fac Gar Fac Was Fac Turns Passed 31487 | 113 2695 1024 1302 698 4251 2625 2067 1815 6915 1121 158 1612 456 699 1473 110 1299 659 18 377 Spaces Moved 27927 | 52 1283 589 803 359 1182 1095 913 759 4008 2356 436 3709 720 1705 3265 144 2497 1290 83 679 Core 2 | 2 . . . . . . . . . . . . . . . . . . . . Treads 5958 | 50 435 . . . 1182 266 320 759 2946 . . . . . . . . . . . Legs 387 | . 387 . . . . . . . . . . . . . . . . . . . Wheels 4622 | . 461 589 803 359 . 829 593 . 971 17 . . . . . . . . . . Hover . | . . . . . . . . . . . . . . . . . . . . . Flight 16958 | . . . . . . . . . 91 2339 436 3709 720 1705 3265 144 2497 1290 83 679 Fastest Speed 20 | 50 115 160 160 160 305 105 105 170 115 25 25 23 23 23 23 23 23 20 20 20 Average Speed 87 | 155 169 160 160 160 317 171 159 232 163 26 25 24 23 23 23 23 23 26 20 22 Slowest Speed 400 | 160 400 160 160 160 320 305 250 250 359 115 25 96 23 23 26 23 102 106 20 98 Overloaded Moves . | . . . . . . . . . . . . . . . . . . . . . Propulsion Burnouts . | . . . . . . . . . . . . . . . . . . . . . Robots Hopped 51 | . . . . . . . . . . 5 1 20 . 7 . . 4 9 . 5 Potential Cave-ins 2 | . . . . . . . . . . . . . . 2 . . . . . . Cave-ins Triggered . | . . . . . . . . . . . . . . . . . . . . . Exploration Rate (%) 70 | 4 99 96 89 77 72 94 96 99 95 56 96 70 52 39 96 4 99 39 74 26 Regions Visited 20 Branch Regions 6 Pre-discovered Areas 15 | . 2 2 1 . . . 1 7 . 2 . . . . . . . . . . Known Exits Taken 6 | . . . . 1 1 . 1 . . . . 1 . 1 . 1 . . . . Unknown Exits Taken 6 | 1 1 1 1 . . . . 1 1 . . . . . . . . . . . Scrap Searched 12 | . . 1 . 2 . . . . 9 . . . . . . . . . . . Spaces Dug 266 | . 7 11 . . . 15 4 . . 28 . 83 48 27 10 . 4 15 . 14 Terrain Destroyed 664 | . 21 18 . . . 15 59 . . 96 . 159 75 27 75 . 78 22 . 19 Melee 141 | . . . . . . 15 . . . 12 . 57 3 21 10 . 4 14 . 5 Projectile 70 | . 7 . . . . . 28 . . . . . 3 6 9 . 9 7 . 1 AOE 451 | . 14 18 . . . . 31 . . 84 . 102 69 . 56 . 64 . . 13 Terrain Rammed . | . . . . . . . . . . . . . . . . . . . . . Walls Destroyed . | . . . . . . . . . . . . . . . . . . . . . Machines Disabled . | . . . . . . . . . . . . . . . . . . . . . Actions | -11 -10 -10 -10 -9 -8 -8 -8 -8 -8 -6 -6 -6 -6 -6 -6 -6 -6 -5 -5 -5 --------- Run | Yrd Mat Min Exi Min Mat Gar Sto Rec Scr Fac Was Fac Gar Fac Gar Fac Gar Fac Was Fac Total 32680 | 76 1582 649 818 482 1496 1561 1352 796 4363 2736 464 4157 894 1928 3777 178 3013 1461 83 814 Wait 1992 | 4 100 22 . 117 105 102 203 11 298 211 . 210 34 104 147 9 216 46 1 52 Move 27812 | 51 1282 588 802 358 1181 1094 912 758 4007 2346 433 3672 719 1690 3264 143 2488 1273 82 669 Hop 46 | . . . . . . . . . . 5 1 16 . 7 . . 4 8 . 5 Pick Up 297 | 11 41 9 4 2 28 24 28 3 13 9 6 24 11 14 26 1 22 18 . 3 Fast Attach 90 | 4 2 . . . 4 7 5 . 2 3 1 17 6 1 19 . 10 2 . 7 Attach 75 | 3 1 2 . . 6 4 6 1 4 10 . 9 3 1 5 . 6 8 . 6 Detach 15 | . . . . . . 1 . 1 . 1 . 3 . . 1 . . 1 . 7 Swap 381 | . 30 5 3 1 28 57 39 . 23 23 5 37 14 28 29 4 21 20 . 14 Drop 347 | . 16 10 4 3 36 43 36 6 13 20 4 31 12 16 43 1 31 16 . 6 Fire 708 | 3 110 13 . 1 103 96 95 13 . 17 7 22 32 14 59 . 88 23 . 12 Melee 458 | . . . 5 . . 67 1 2 3 48 7 116 37 35 59 1 10 46 . 21 Ram . | . . . . . . . . . . . . . . . . . . . . . Kick . | . . . . . . . . . . . . . . . . . . . . . Crush 11 | . . . . . 5 . 5 1 . . . . . . . . . . . . Escape Stasis 313 | . . . . . . 48 14 . . 33 . . . 18 92 . 108 . . . Rewire 61 | . . . . . . 18 . . . . . . 26 . 17 . . . . . Trap 4 | . . . . . . . . . . 4 . . . . . . . . . . Miscellaneous 70 | . . . . . . . 8 . . 6 . . . . 16 19 9 . . 12 Route ------- -11/Scrapyard -10/Materials (discovered 6 exits: *Mat x3 / [*Min x2] / *Sub) -10/Mines (discovered 4 exits: *Mat x2 / *Exi / *Sub) -10/Exiles (discovered 2 exits: [*Min x2]) -9/Mines (discovered 2 exits: *Mat x2) -8/Materials (discovered 4 exits: *Fac x2 / *Sto / Gar) -8/Garrison (discovered 3 exits: *Sto x3) -8/Storage (discovered 2 exits: *Fac / *Rec) -8/Recycling (discovered 2 exits: *Fac / *Scr) -8/Scraptown (discovered 2 exits: *Fac x2) -6/Factory (discovered 2 exits: *Fac x2) -6/Waste -6/Factory (discovered 5 exits: *Fac x2 / Low x2 / Gar) -6/Garrison (discovered 3 exits: *Fac x3) -6/Factory (discovered 3 exits: *Fac / *Low / Gar) -6/Garrison (discovered 4 exits: *Fac x3 / *Fac) -6/Factory -6/Garrison (discovered 3 exits: *Fac x3) -5/Factory (discovered 3 exits: [*Fac x2] / [*Upp]) -5/Waste -5/Factory History --------- Turn | Location | Event 35 | -11/Scrapyard | Discovered new exit (range 15) 114 | -11/Scrapyard | Entered Materials 273 | -10/Materials | Discovered new exit (range 15) 332 | -10/Materials | Build established: Mutant 493 | -10/Materials | Discovered new exit (range 15) 526 | -10/Materials | Central database locked down 987 | -10/Materials | Discovered new exit (range 16) 1274 | -10/Materials | Discovered new exit (range 12) 1515 | -10/Materials | Discovered new exit (range 9) 1556 | -10/Materials | Discovered new exit (range 6) 1759 | -10/Materials | Learned 2 Mines zone layouts 1869 | -10/Materials | Learned location of 1 exit from Storage 1908 | -10/Materials | Learned location of 1 exit from Storage 1991 | -10/Materials | Loaded intel: 2 recycling unit locations 2006 | -10/Materials | Core integrity fell below 50% 2185 | -10/Materials | Build established: Hauler-Mutant 2809 | -10/Materials | Entered Mines 2810 | -10/Mines | Identified exit to Materials 2810 | -10/Mines | Identified exit to Subcaves 2825 | -10/Mines | Met a Derelict bent on vengeance 2854 | -10/Mines | Found a hidden stash of uninstalled traps 2925 | -10/Mines | Learned 2 Materials zone layouts 3221 | -10/Mines | Found DCF Scrap (15 items) 3274 | -10/Mines | Assisted by bots powering up and referring to "LRC-V3" 3324 | -10/Mines | Escorted by a lone wolf Derelict 3818 | -10/Mines | Deemed a non-threat by the Exiles lab entrance 3820 | -10/Mines | Discovered new exit (range 5) 3833 | -10/Mines | Entered Exiles 3833 | -10/Exiles | Accompanied by 4 allies 3859 | -10/Exiles | Discovered new exit (range 15) 3877 | -10/Exiles | Met 8R-AWN 3902 | -10/Exiles | Met EX-HEX 3974 | -10/Exiles | Met EX-DEC 4001 | -10/Exiles | Visited The Gauntlet 4195 | -10/Exiles | Learned location of Zion (-6) 4270 | -10/Exiles | Discovered new exit (range 14) 4398 | -10/Exiles | Met EX-BIN 5135 | -10/Exiles | Entered Mines 5135 | -9/Mines | Accompanied by 3 allies 5136 | -9/Mines | Identified exit to Materials 5167 | -9/Mines | A weapon hastily lodged in a ceiling crevice suddenly fell to the ground 5342 | -9/Mines | Found a Scrap Suit stashed away for nefarious purposes 5347 | -9/Mines | Found Scrap Suit 5828 | -9/Mines | Assembled infested the area 5833 | -9/Mines | Assisted by a Guerilla fighting off Assembled 5833 | -9/Mines | Entered Materials 5833 | -8/Materials | Accompanied by 1 ally 5833 | -8/Materials | Evolved 4 slots: Propulsion x1, Utility x1, Weapon x2 6143 | -8/Materials | Build established: Hauler-Gunner 8293 | -8/Materials | Discovered new exit (range 16) 8586 | -8/Materials | Identified exit to Garrison 8635 | -8/Materials | Garrison activated, responded to threat 8683 | -8/Materials | Destroyed 7 combat bots 8758 | -8/Materials | Repaired Enh. Autogun 8804 | -8/Materials | Discovered new exit (range 10) 9469 | -8/Materials | Discovered new exit (range 8) 9638 | -8/Materials | Build established: Hauler-Tank 10084 | -8/Materials | Entered Garrison 10176 | -8/Garrison | Triggered checkpoint 10219 | -8/Garrison | Garrison Relay disabled 10507 | -8/Garrison | Triggered checkpoint 10516 | -8/Garrison | Triggered checkpoint 10642 | -8/Garrison | Triggered checkpoint 11173 | -8/Garrison | Discovered new exit (range 10) 11201 | -8/Garrison | Identified exit to Storage 11284 | -8/Garrison | Triggered checkpoint 11303 | -8/Garrison | Garrison Relay disabled 11468 | -8/Garrison | Triggered checkpoint 11621 | -8/Garrison | Discovered exit to Storage (range 8) 11657 | -8/Garrison | Triggered checkpoint 11714 | -8/Garrison | Destroyed 7 combat bots 11791 | -8/Garrison | Build established: Hauler-Gunner 11829 | -8/Garrison | Garrison Relay disabled 11836 | -8/Garrison | Garrison Relay disabled 11847 | -8/Garrison | Garrison Relay disabled 11854 | -8/Garrison | Garrison Relay disabled 11930 | -8/Garrison | Garrison Relay disabled 12244 | -8/Garrison | Triggered checkpoint 12427 | -8/Garrison | Build established: Scavenger-Gunner 12509 | -8/Garrison | Discovered exit to Storage (range 9) 12598 | -8/Garrison | Triggered checkpoint 12632 | -8/Garrison | Garrison Relay disabled 12709 | -8/Garrison | Entered Storage 12709 | -8/Storage | Accompanied by 1 ally 12710 | -8/Storage | Identified exit to Factory 12710 | -8/Storage | Identified exit to Recycling 13355 | -8/Storage | Repaired Broken Imp. VTOL Module 13443 | -8/Storage | Learned location of Armory (-4) 13509 | -8/Storage | First assault squad dispatched 13541 | -8/Storage | Core integrity fell below 50% 13650 | -8/Storage | Repaired Arm. Wheel 13991 | -8/Storage | Used back door to open Recycling access 14024 | -8/Storage | Build established: Gunner 14133 | -8/Storage | Met a pair of Derelict thieves 14440 | -8/Storage | Destroyed 8 combat bots 14591 | -8/Storage | Assisted by bots powering up and referring to "LRC-V3" 14776 | -8/Storage | Entered Recycling 14776 | -8/Recycling | Accompanied by 10 allies 14880 | -8/Recycling | Build established: Commander-Gunner 15852 | -8/Recycling | Discovered new exit (range 14) 16530 | -8/Recycling | Scanned before Scraplab entrance 16554 | -8/Recycling | Entered Scraplab 16568 | -8/Recycling | Discovered new exit (range 2) 16591 | -8/Recycling | Build established: Commander-Mutant 16591 | -8/Recycling | Entered Scraptown 16591 | -8/Scraptown | Accompanied by 10 allies 16591 | -8/Scraptown | System corruption cleaned by C-Scrubber 17207 | -8/Scraptown | Discovered new exit (range 13) 17320 | -8/Scraptown | Visited Bundlers 17422 | -8/Scraptown | Visited Junk Repository 17475 | -8/Scraptown | Visited Symbiants 17599 | -8/Scraptown | Visited CR-KLE's Repair Center 17716 | -8/Scraptown | Visited Cyclists 17775 | -8/Scraptown | Visited IN-MT5's Study 18035 | -8/Scraptown | Visited UFD Registry 18039 | -8/Scraptown | Registered with UFD as "Hardslicer" 18052 | -8/Scraptown | Visited Comm Corps 18173 | -8/Scraptown | Visited Scrapoid Research Area 18231 | -8/Scraptown | Visited Scrapoid Pod Storage 18260 | -8/Scraptown | Visited Observation Area 18292 | -8/Scraptown | Visited Chapter 10 18353 | -8/Scraptown | Visited Abandonware Association 18375 | -8/Scraptown | Learned abandonware demo "REPAIR.EXE" 18375 | -8/Scraptown | Learned abandonware demo "KABOOM.EXE" 18416 | -8/Scraptown | Visited Infowarlord's Domain 18443 | -8/Scraptown | Visited Curators Association 18718 | -8/Scraptown | Visited Scrap Suit Storage 18744 | -8/Scraptown | Visited Research Penetration Think Tank 18781 | -8/Scraptown | Visited Analyses Database 18953 | -8/Scraptown | Entered Cyclist Reading Room 20279 | -8/Scraptown | Discovered new exit (range 5) 22537 | -8/Scraptown | CR-KLE repaired 8 parts 23445 | -8/Scraptown | Met Optimus 23445 | -8/Scraptown | Accepted into 0bPrime 23506 | -8/Scraptown | Entered Factory 23506 | -6/Factory | Accompanied by 10 allies 23506 | -6/Factory | Evolved 4 slots: Propulsion x2, Utility x2 23854 | -6/Factory | Build established: Commander-Sprinter 23995 | -6/Factory | Loaded intel: 8 recycling unit locations 24000 | -6/Factory | Learned location of Protoforge (-3) 24037 | -6/Factory | Discovered new exit (range 19) 24171 | -6/Factory | Spotted B-75 Beast 24265 | -6/Factory | Discovered new exit (range 8) 24478 | -6/Factory | Cargo convoy interrupted 24556 | -6/Factory | Search patrols dispatched 24564 | -6/Factory | Build established: Sprinter 24579 | -6/Factory | Scrapoids reinforcements arrived? 24614 | -6/Factory | Lost 5 allies 24627 | -6/Factory | Manually triggered Chute Trap 24627 | -6/Factory | Sucked down chute 24627 | -6/Factory | Entered Waste 24627 | -6/Waste | The area was eerily silent 24630 | -6/Waste | Destroyed 7 combat bots 24653 | -6/Waste | Lost 3 parts (1n1u1w) 24656 | -6/Waste | Discovered new exit (range 22) 24707 | -6/Waste | A Compactor rumbled back to life 24715 | -6/Waste | Spotted C-40 Crusher 24718 | -6/Waste | Destroyed C-40 Crusher 24785 | -6/Waste | Entered Factory 24857 | -6/Factory | Identified exit to Lower Caves 24984 | -6/Factory | Scrapoid reinforcements arrived 25030 | -6/Factory | Repaired Broken Micro-nuke Launcher? 25070 | -6/Factory | Identified exit to Garrison 25073 | -6/Factory | Lost 3 allies 25079 | -6/Factory | Discovered new exit (range 14) 25094 | -6/Factory | Discovered new exit (range 18) 25374 | -6/Factory | Repaired Broken Imp. VTOL Module 25580 | -6/Factory | Repaired Fusion Compressor 25647 | -6/Factory | Repaired Broken Gravity Neutralizer 25656 | -6/Factory | Loaded intel: 7 recycling unit locations 25916 | -6/Factory | Fabricated Cld. Cesium-ion Thruster? 25996 | -6/Factory | Cargo convoy interrupted 26160 | -6/Factory | Found Prototype Device 26160 | -6/Factory | Identified Exp. Focal Shield 26185 | -6/Factory | First assault squad dispatched 26397 | -6/Factory | Entered Garrison 26420 | -6/Garrison | Discovered new exit (range 72) 26420 | -6/Garrison | Discovered new exit (range 54) 26420 | -6/Garrison | Discovered new exit (range 55) 26431 | -6/Garrison | Triggered checkpoint 26484 | -6/Garrison | Garrison Relay disabled 26518 | -6/Garrison | Spotted Striker 26522 | -6/Garrison | Found embedded Infiltrators 26555 | -6/Garrison | Rewired Striker 26558 | -6/Garrison | Allies destroyed Striker 26569 | -6/Garrison | Triggered checkpoint 26577 | -6/Garrison | Spotted B-75 Beast 26579 | -6/Garrison | Triggered checkpoint 26590 | -6/Garrison | Triggered checkpoint 26596 | -6/Garrison | Allies destroyed B-75 Beast 26688 | -6/Garrison | Installed Relay Interface Framework 26853 | -6/Garrison | Entered Factory 26863 | -6/Factory | Spotted B-75 Beast 27049 | -6/Factory | Loaded intel: 8 recycling unit locations 27203 | -6/Factory | First assault squad dispatched 27277 | -6/Factory | Fabricated Fusion Compressor? 27424 | -6/Factory | Discovered new exit (range 20) 27425 | -6/Factory | Core integrity fell below 50% 27481 | -6/Factory | Discovered exit to Lower Caves (range 6) 27548 | -6/Factory | Identified exit to Garrison 27552 | -6/Factory | Entered Garrison 27558 | -6/Garrison | Triggered checkpoint 27589 | -6/Garrison | Discovered new exit (range 5) 27623 | -6/Garrison | Triggered checkpoint 27628 | -6/Garrison | Garrison Relay disabled 27709 | -6/Garrison | System corruption reached 10% 27782 | -6/Garrison | Rescued a captive Derelict 27782 | -6/Garrison | Rescued a captive Derelict 27846 | -6/Garrison | Spotted B-75 Beast 27903 | -6/Garrison | Triggered checkpoint 27975 | -6/Garrison | Destroyed B-75 Beast 28046 | -6/Garrison | Discovered new exit (range 13) 28050 | -6/Garrison | Expanded RIF knowledge: Coupler Efficiency 28089 | -6/Garrison | Garrison Relay disabled 28139 | -6/Garrison | H-XX Assembler disabled 28204 | -6/Garrison | Discovered new exit (range 10) 28217 | -6/Garrison | Triggered checkpoint 28223 | -6/Garrison | Garrison Relay disabled 28269 | -6/Garrison | Triggered checkpoint 28334 | -6/Garrison | Triggered checkpoint 28397 | -6/Garrison | Discovered new exit (range 14) 28464 | -6/Garrison | Spotted B-75 Beast 28567 | -6/Garrison | Triggered checkpoint 28582 | -6/Garrison | Garrison Relay disabled 28630 | -6/Garrison | Build established: Scavenger-Sprinter 28653 | -6/Garrison | Destroyed B-75 Beast 28726 | -6/Garrison | Triggered checkpoint 28731 | -6/Garrison | Garrison Relay disabled 29025 | -6/Garrison | Entered Factory 29025 | -6/Factory | Accompanied by 2 allies 29027 | -6/Factory | Identified exit to Garrison 29071 | -6/Factory | Build established: Sprinter 29132 | -6/Factory | Loaded intel: 8 recycling unit locations 29135 | -6/Factory | Entered Garrison 29135 | -6/Garrison | Accompanied by 5 allies 29216 | -6/Garrison | Phase Generator disabled 29277 | -6/Garrison | Triggered checkpoint 29280 | -6/Garrison | Expanded RIF knowledge: Hotswap 29284 | -6/Garrison | Garrison Relay disabled 29324 | -6/Garrison | Triggered checkpoint 29392 | -6/Garrison | Destroyed 9 combat bots 29437 | -6/Garrison | Spotted B-75 Beast 29447 | -6/Garrison | Triggered checkpoint 29475 | -6/Garrison | Triggered checkpoint 29479 | -6/Garrison | Destroyed B-75 Beast 29479 | -6/Garrison | Triggered checkpoint 29484 | -6/Garrison | Triggered checkpoint 29530 | -6/Garrison | Lost 4 allies 29564 | -6/Garrison | Destroyed 14 combat bots 29653 | -6/Garrison | Garrison Relay disabled 29723 | -6/Garrison | Triggered checkpoint 29776 | -6/Garrison | Core integrity fell below 20% 29776 | -6/Garrison | Triggered checkpoint 29786 | -6/Garrison | Discovered new exit (range 14) 29817 | -6/Garrison | Garrison Relay disabled 29877 | -6/Garrison | Build established: Scavenger-Sprinter 29916 | -6/Garrison | Expanded RIF knowledge: Program Shield 30018 | -6/Garrison | Discovered new exit (range 11) 30040 | -6/Garrison | Garrison Relay disabled 30055 | -6/Garrison | Triggered checkpoint 30090 | -6/Garrison | Discovered new exit (range 12) 30137 | -6/Garrison | Triggered checkpoint 30142 | -6/Garrison | Garrison Relay disabled 30434 | -6/Garrison | Entered Factory 30434 | -5/Factory | Accompanied by 3 allies 30434 | -5/Factory | Evolved 2 slots: Propulsion x1, Utility x1 30620 | -5/Factory | Loaded intel: 8 recycling unit locations 30630 | -5/Factory | Discovered new exit (range 10) 30687 | -5/Factory | Lost 3 parts (1u2w) 30734 | -5/Factory | First assault squad dispatched 30804 | -5/Factory | Build established: Sprinter 30880 | -5/Factory | Discovered new exit (range 4) 30891 | -5/Factory | Discovered new exit (range 16) 30935 | -5/Factory | Spotted B-75 Beast 31093 | -5/Factory | Manually triggered Chute Trap 31093 | -5/Factory | Sucked down chute 31093 | -5/Factory | Entered Waste 31096 | -5/Waste | Spotted C-40 Crusher 31099 | -5/Waste | Spotted C-40 Crusher 31101 | -5/Waste | Spotted C-40 Crusher 31101 | -5/Waste | Spotted C-40 Crusher 31103 | -5/Waste | Spotted C-40 Crusher 31105 | -5/Waste | Spotted C-40 Crusher 31106 | -5/Waste | Discovered new exit (range 13) 31108 | -5/Waste | EMP discharged 31111 | -5/Waste | Entered Factory 31261 | -5/Factory | Spotted B-75 Beast 31432 | -5/Factory | Fabricated Cld. Impulse Thruster? 31476 | -5/Factory | Scrapoids reinforcements arrived? 31488 | -5/Factory | Self-destructed Last Messages --------------- 31463_ Slug penetrates Wall. 31464_ Cld. Impulse Thruster severed. 31465_ System corrupted: Energy discharge (-29). 31466_ Acquired Cld. Impulse Thruster. 31469_ Hvy. Machine Gun severed. 31469_ Acquired Hvy. Machine Gun. 31473_ Connecting with Terminal... >>Trojan(Assimilate) Trojan loaded successfully. Testing... System interface override in place. >>Index(Fabricators) Found 6 fabricators. Downloaded coordinate data. 31475_ KE Penetrator severed. 31476_ >> RECYCLER: Scrapoids arrived? 31482_ System corrupted: Component data lost. 31482_ ALERT: Potential suspicious activity detected, Programmers report to Factory Zone 6W. 31487_ IFF Parser destroyed. Map ----- +----------------------------------------------------+ | ?????????????????????????????????????????????????? | | ?????????????????????????????????????????????????? | | ?????????????????????????????????????????????????? | | ?????????????????????????????????????????????????? | | ?????????????????????????????????????????????????? | | ?????????????????????????????????????????????????? | | ?????????????????????????????????????????????????? | | ?????????????????????????????????????????????????? | | ?????????????????????????????????????????????????? | | ?????????????????????????????????????????????????? | | ?????????????????????????????????????????????????? | | ?????????????????????????????????????????????????? | | ?????????????????????????????????????????????????? | | ?????????????????????????????????????????????????? | | ?????????????????##########??????????????????????? | | ?????????????????# #??????????????????????? | | ?????????????????# #??????????????????????? | | ?????????????????# #????????? ????????? | | ?????????????????# #????????? #???????? | | ?????????????????# #????????# #???????? | | ?????????????????# """""" #????????# #???????? | | ?????????????????# """""" #????????+ #???????? | | ?????????????????# """"""c#????????# #???????? | | ?????????????????# """"""c#????????# #???????? | | ?????????????????#[""""""c#????????# #???????? | | ?????????????????# """"""@#????????# #???????? | | ?????????????????# """""" #????????# ######### | | ?????????????????# """""" #????????# | | ?????????????????# """""" #????????# | | ?????????????????# #????????# ! """ """ | | ?????????????????# #????????# """ """ | | ?????????????????# "T" #????????# """ """ | | ?????????????????# ! #????????# !!= | | ????????? ##########+########## !]= """ """ | | ????? !] """ """ | | ????? """ """ | | ????? | | ?????? | | ?????? ! | | ??????? ###+################# ######### | | ??????? ?????????????????????# #?# | | ???????#####???????????????????????# #?# | | ???????????????????????????????????# ### """Y" | | ???????????????????????????????????# / """"" | | ???????????????????????????????????# ### | | ???????????????????????????????+ #?####### | | ???????????????????????????????#######+###???????? | | ?????????????????????????????????????????????????? | | ?????????????????????????????????????????????????? | | ?????????????????????????????????????????????????? | +----------------------------------------------------+ Best States ------------- Heat Dissipation 64 Coolant Potential 80 Energy Generation 35 Energy Capacity 325 Matter Stores 300 Matter Capacity 300 Sight Range 22 Terrain Scan Density 10 Cloak Strength 2 Power Amplification 20 Additional Mass Support 12 Armor Coverage 225 Core Shielding 30 Propulsion Shielding 66 Weapon Shielding 33 Weapon Cycling 25 Melee Speed Boost 20 Evasion (%) 77 Targeting Accuracy 8 Melee Accuracy 8 Core Analysis 6 Recoil Reduction 3 Salvage Targeting 1 Offensive Hacking 14 Relay Coupler Types 2 Relay Coupler Value 62 Authchip Count 1 Trap Extractor Capacity 6 Item Schematics ----------------- Arm. Wheel | -8/Materials | Hacked Arm. Treads | -8/Materials | Hacked Imp. VTOL Module | -8/Materials | Scanalyzed Rnf. Deuterium Engine | -8/Materials | Scanalyzed Imp. Propulsion Shielding | -8/Materials | Scanalyzed Plasma Flamer | -8/Materials | Scanalyzed Lgt. Nuclear Core | -8/Materials | Scanalyzed Lyr. Medium Armor Plating | -8/Storage | Hacked Adv. Terrain Scan Processor | -8/Storage | Hacked Matter Compressor | -8/Recycling | Hacked Flight Unit | -8/Recycling | Hacked Lgt. Assault Rifle | -8/Recycling | Hacked Nuclear Pulse Array | -6/Factory | Hacked Fusion Compressor | -6/Factory | Hacked Ovr. Barrage Gun | -6/Factory | Scanalyzed Cld. Cesium-ion Thruster | -6/Factory | Scanalyzed Gravity Neutralizer | -6/Factory | Scanalyzed Cld. Impulse Thruster | -6/Factory | Scanalyzed Imp. Fusion Compressor | -5/Factory | Scanalyzed Adv. Reaction Control System | -5/Factory | Scanalyzed Field Propulsion Array | -5/Factory | Scanalyzed Plasma Cutter | -5/Factory | Scanalyzed Adv. Recoil Stabilizer | -5/Factory | Scanalyzed Adv. Weapon Cycler | -5/Factory | Scanalyzed Tiamat Missile Launcher | -5/Factory | Scanalyzed IFF Parser | -5/Factory | Scanalyzed Adv. Cryofiber Web | -5/Factory | Hacked Robot Schematics ------------------ M-13 Machinist | -10/Materials | Hacked I-25 Savior | -8/Storage | Hacked Fabricated ------------ Cld. Cesium-ion Thruster | x1 | -6/Factory | Authchip Fusion Compressor | x2 | -6/Factory Cld. Impulse Thruster | x1 | -5/Factory | Authchip Repaired ---------- Enh. Autogun | 54% | -8/Materials Imp. VTOL Module | 99% | -8/Storage | Broken Arm. Wheel | 10% | -8/Storage Micro-nuke Launcher | 14% | -6/Factory | Broken Imp. VTOL Module | 38% | -6/Factory | Broken Fusion Compressor | 26% | -6/Factory Gravity Neutralizer | 99% | -6/Factory | Broken Alien Tech Used ----------------- None Achievements -------------- None Challenges ------------ None Game ------ Seed BoreInertialPlating Manual? 0 Play Time 06:40:28 Cumulative 1008.2 hours Start 2025.06.30 @ 23:36:09 End 2025.07.04 @ 00:19:31 Sessions 9 Manual Loads 0 Difficulty Rogue Special Mode None Game No. 512 Rogue 512 Adventurer 0 Explorer 0 Win Type - Total 23 Types 10/4/3/0/1/1/2/2/0/0 Lore% 88 Gallery% 88 Achievement% 83 Wizard Run 0 Options --------- Layout 0 ASCII 0 Keyboard 0 Movement Numpad Keybinds 0 Fullscreen 2 Font 24/Smallcaps Map View 76x50 Zoom Use 0% Tactical HUD 1 Map Filters NONE Filters SHIFT_HUE(315) Steam 1 RUN: 8776b4ce-f8ee-416e-85c3-c01cd266a84e